{"text_format":"1","workbook":"xlsx","n_sheets":23,"sheets":["PF Booking","ZBIN_Queue","ZBIN","12NC&SN","SET","Transport order ","VR Booking","VR Matrix Parts","VR Matrix Tools","Config_SLOC","ZMEC-ZPACK form","Putaway C4C","C4C A4","C4C Handover","C4C Matrix","C4C Picking list","Kamishibai","Status","Source sheet ZMEC","VR Source Parts","VR Data Parts","VR Source Tools","VR Data Tools"],"not_rendered":{"charts":0,"images":17,"macros":1,"external_links":0,"defined_names":43,"comments":4,"pivot_tables":0},"unopened":[],"bounds":{"document_bytes":16777216,"sheet_cells":100000,"rows_first":2000,"rows_last":500,"rows_between":2000,"halvings":0,"cell_chars":16384,"cell_head_chars":4096},"cells_cut":0,"cells_raw":0,"read":"whole","date_system":"1900"}

{"sheet":"PF Booking","index":0,"n_rows":34,"n_cols":6,"rows_kept":34,"cut":false,"hidden":false,"merged":[[33,0,33,5],[34,0,35,5],[18,3,18,5],[19,3,19,5],[18,1,18,2],[19,1,19,2],[5,0,6,0],[14,1,17,5],[2,2,2,4],[3,2,3,4],[5,3,6,5],[7,3,13,5],[5,1,6,2],[7,1,13,2],[15,0,17,0],[7,0,9,0],[10,0,13,0],[4,1,4,5]]}
["12NC","Description","Plant","Sloc","Bin location","Pieces in SAP"]
[]
["Pieces to be put away","Document Header Text","Booked by",null,null,"Service Level"]
[null,null,"Dario Pascoal",null,null,"Routine"]
[null,"Tools & Cleanbench SH"]
["Date & Time","Location",null,"Putaway Scan"]
[]
[{"$f":"NOW()","v":"2026-04-13T16:16:47.980"},{"$f":"IF(OR(E2=\"INB-SERV\",E2=\"INB-FACT\"),\" \",E2)","v":0},null,{"$f":"_xlfn.IMAGE(\"https://quickchart.io/qr?text=\" & _xlfn.ENCODEURL(B22))","v":{"$error":"#VALUE!"}}]
[]
[]
[{"$f":"NOW()","v":46125.678333101852}]
[]
[]
[]
["Class / UN Number",{"$f":"C2&\" \"&\"-\"&\" \"&D2","v":" - "}]
[]
[]
[]
["Putaway by","Putaway Location",null,"ZBIN by"]
[]
[]
[{"$f":"TRIM(C2)","v":""},{"$f":"A22&\";\"&A23&\";\"&A24&\";\"&A25&\";\"&A26&\";\"&A27&\";\"&A28&\";\"&A29&\";\"&A30","v":";;;;;WithoutLocation;0;Dario Pascoal;46125.6783331019"}]
[{"$f":"TRIM(D2)","v":""}]
[{"$f":"TRIM(A2)","v":""}]
[{"$f":"TRIM(A4)","v":""}]
[{"$f":"TRIM(E2)","v":""}]
[{"$f":"IF(LEN(A26) > 6, \"WithLocation\", \"WithoutLocation\")","v":"WithoutLocation"}]
[{"$f":"B4","v":0}]
[{"$f":"C4","v":"Dario Pascoal"}]
[{"$f":"NOW()","v":"2026-04-13T16:16:47.980"}]
[]
[{"$f":"F2","v":0}]
[{"$f":"A4","v":0}]
["Serial Number(s)"]

{"sheet":"ZBIN_Queue","index":1,"n_rows":6,"n_cols":13,"rows_kept":6,"cut":false,"hidden":true,"merged":[]}
["QueueID","Timestamp","NC12","Quantity","Plant","SLoc","UserName","OldLocation","NewLocation","IsReverted","RevertedAt","SyncStatus","RecordID"]
[1,"2025-12-05T07:42:20","SERV.702.98022",1,"NL10",3003,"Dario Pascoal",null,"R-13-144B",0,null,"Synced",18]
[2,"2025-12-05T07:42:46","SERV.702.98022",1,"NL10",3003,"Dario Pascoal",null,"R-13-144C",0,null,"Synced",19]
[3,"2025-12-05T08:02:36","SERV.702.98022",1,"NL10",3003,"Dario Pascoal",null,"r-13-140c",0,null,"Synced",24]
[4,"2025-12-05T08:02:57","SERV.702.98022",1,"NL10",3003,"Dario Pascoal",null,"r-13-144c",0,null,"Synced",25]
[5,"2025-12-08T16:33:40","SERV.715.80541",1,"NL10",3,"Dario Pascoal",null,"Y-01-053",0,null,"Synced",101]

{"sheet":"ZBIN","index":2,"n_rows":64,"n_cols":17,"rows_kept":64,"cut":false,"hidden":false,"merged":[[29,13,29,15],[30,1,30,2],[30,3,30,4],[30,6,30,7],[30,9,30,10],[30,11,30,12],[30,13,30,15],[29,1,29,2],[29,3,29,4],[29,6,29,7],[29,9,29,10],[29,11,29,12],[27,13,27,15],[28,1,28,2],[28,3,28,4],[28,6,28,7],[28,9,28,10],[28,11,28,12],[28,13,28,15],[27,1,27,2],[27,3,27,4],[27,6,27,7],[27,9,27,10],[27,11,27,12],[25,13,25,15],[26,1,26,2],[26,3,26,4],[26,6,26,7],[26,9,26,10],[26,11,26,12],[26,13,26,15],[25,1,25,2],[25,3,25,4],[25,6,25,7],[25,9,25,10],[25,11,25,12],[23,13,23,15],[24,1,24,2],[24,3,24,4],[24,6,24,7],[24,9,24,10],[24,11,24,12],[24,13,24,15],[23,1,23,2],[23,3,23,4],[23,6,23,7],[23,9,23,10],[23,11,23,12],[21,13,21,15],[22,1,22,2],[22,3,22,4],[22,6,22,7],[22,9,22,10],[22,11,22,12],[22,13,22,15],[21,1,21,2],[21,3,21,4],[21,6,21,7],[21,9,21,10],[21,11,21,12],[19,13,19,15],[20,1,20,2],[20,3,20,4],[20,6,20,7],[20,9,20,10],[20,11,20,12],[20,13,20,15],[19,1,19,2],[19,3,19,4],[19,6,19,7],[19,9,19,10],[19,11,19,12],[17,13,17,15],[18,1,18,2],[18,3,18,4],[18,6,18,7],[18,9,18,10],[18,11,18,12],[18,13,18,15],[17,1,17,2],[17,3,17,4],[17,6,17,7],[17,9,17,10],[17,11,17,12],[15,13,15,15],[16,1,16,2],[16,3,16,4],[16,6,16,7],[16,9,16,10],[16,11,16,12],[16,13,16,15],[15,1,15,2],[15,3,15,4],[15,6,15,7],[15,9,15,10],[15,11,15,12],[13,13,13,15],[14,1,14,2],[14,3,14,4],[14,6,14,7],[14,9,14,10],[14,11,14,12],[14,13,14,15],[13,1,13,2],[13,3,13,4],[13,6,13,7],[13,9,13,10],[13,11,13,12],[11,13,11,15],[12,1,12,2],[12,3,12,4],[12,6,12,7],[12,9,12,10],[12,11,12,12],[12,13,12,15],[11,1,11,2],[11,3,11,4],[11,6,11,7],[11,9,11,10],[11,11,11,12],[10,13,10,15],[0,0,0,16],[3,0,3,11],[4,0,8,11],[3,13,3,16],[4,13,5,16],[10,1,10,2],[10,3,10,4],[10,6,10,7],[10,9,10,10],[10,11,10,12],[31,1,31,2],[31,3,31,4],[31,6,31,7],[31,9,31,10],[31,11,31,12],[31,13,31,15],[32,1,32,2],[32,3,32,4],[32,6,32,7],[32,9,32,10],[32,11,32,12],[32,13,32,15],[33,1,33,2],[33,3,33,4],[33,6,33,7],[33,9,33,10],[33,11,33,12],[33,13,33,15],[34,1,34,2],[34,3,34,4],[34,6,34,7],[34,9,34,10],[34,11,34,12],[34,13,34,15],[35,1,35,2],[35,3,35,4],[35,6,35,7],[35,9,35,10],[35,11,35,12],[35,13,35,15],[36,1,36,2],[36,3,36,4],[36,6,36,7],[36,9,36,10],[36,11,36,12],[36,13,36,15],[37,1,37,2],[37,3,37,4],[37,6,37,7],[37,9,37,10],[37,11,37,12],[37,13,37,15],[38,1,38,2],[38,3,38,4],[38,6,38,7],[38,9,38,10],[38,11,38,12],[38,13,38,15],[39,1,39,2],[39,3,39,4],[39,6,39,7],[39,9,39,10],[39,11,39,12],[39,13,39,15],[40,1,40,2],[40,3,40,4],[40,6,40,7],[40,9,40,10],[40,11,40,12],[40,13,40,15],[41,1,41,2],[41,3,41,4],[41,6,41,7],[41,9,41,10],[41,11,41,12],[41,13,41,15],[42,1,42,2],[42,3,42,4],[42,6,42,7],[42,9,42,10],[42,11,42,12],[42,13,42,15],[43,1,43,2],[43,3,43,4],[43,6,43,7],[43,9,43,10],[43,11,43,12],[43,13,43,15],[44,1,44,2],[44,3,44,4],[44,6,44,7],[44,9,44,10],[44,11,44,12],[44,13,44,15],[45,1,45,2],[45,3,45,4],[45,6,45,7],[45,9,45,10],[45,11,45,12],[45,13,45,15],[46,1,46,2],[46,3,46,4],[46,6,46,7],[46,9,46,10],[46,11,46,12],[46,13,46,15],[47,1,47,2],[47,3,47,4],[47,6,47,7],[47,9,47,10],[47,11,47,12],[47,13,47,15],[48,1,48,2],[48,3,48,4],[48,6,48,7],[48,9,48,10],[48,11,48,12],[48,13,48,15],[49,1,49,2],[49,3,49,4],[49,6,49,7],[49,9,49,10],[49,11,49,12],[49,13,49,15],[50,1,50,2],[50,3,50,4],[50,6,50,7],[50,9,50,10],[50,11,50,12],[50,13,50,15],[51,1,51,2],[51,3,51,4],[51,6,51,7],[51,9,51,10],[51,11,51,12],[51,13,51,15],[52,1,52,2],[52,3,52,4],[52,6,52,7],[52,9,52,10],[52,11,52,12],[52,13,52,15],[53,1,53,2],[53,3,53,4],[53,6,53,7],[53,9,53,10],[53,11,53,12],[53,13,53,15],[54,1,54,2],[54,3,54,4],[54,6,54,7],[54,9,54,10],[54,11,54,12],[54,13,54,15],[55,1,55,2],[55,3,55,4],[55,6,55,7],[55,9,55,10],[55,11,55,12],[55,13,55,15],[56,1,56,2],[56,3,56,4],[56,6,56,7],[56,9,56,10],[56,11,56,12],[56,13,56,15],[57,1,57,2],[57,3,57,4],[57,6,57,7],[57,9,57,10],[57,11,57,12],[57,13,57,15],[58,1,58,2],[58,3,58,4],[58,6,58,7],[58,9,58,10],[58,11,58,12],[58,13,58,15],[59,1,59,2],[59,3,59,4],[59,6,59,7],[59,9,59,10],[59,11,59,12],[59,13,59,15],[60,1,60,2],[60,3,60,4],[60,6,60,7],[60,9,60,10],[60,11,60,12],[60,13,60,15],[63,1,63,2],[63,3,63,4],[63,6,63,7],[63,9,63,10],[63,11,63,12],[63,13,63,15],[61,1,61,2],[61,3,61,4],[61,6,61,7],[61,9,61,10],[61,11,61,12],[61,13,61,15],[62,1,62,2],[62,3,62,4],[62,6,62,7],[62,9,62,10],[62,11,62,12],[62,13,62,15]]}
["ZBIN MANAGEMENT SYSTEM"]
[]
["DB_PATH","Z:\\DHL_ServicePart_WH\\Service Parts\\ZBIN\\DHLPutaway.accdb"]
["SCAN QR CODE",null,null,null,null,null,null,null,null,null,null,null,null,"ENTER LOCATION"]
[]
[]
[]
[]
[]
[]
["ID","Scanned",null,"12NC",null,"Qty","Plant",null,"SLoc","User",null,"Old Location",null,"New Location",null,null,"Action"]
[3836,"13/04/2026 14:47:09",null,"SERV.656.07323",null,1,"NL10",null,"0003","Nicoleta Marinescu",null,null,null,"R-44-053A"]
[3835,"13/04/2026 14:46:55",null,"SERV.622.49892",null,1,"NL10",null,"0005","Nicoleta Marinescu",null,null,null,"R-14-041A"]
[3834,"13/04/2026 14:46:44",null,"SERV.655.90533",null,1,"NL10",null,"0003","Nicoleta Marinescu",null,null,null,"R-47-053A"]
[3833,"13/04/2026 14:46:26",null,"SERV.671.41941",null,1,"NL10",null,"0003","Nicoleta Marinescu",null,null,null,"R-47-052A"]
[3832,"13/04/2026 14:46:15",null,"SERV.502.17646",null,2,"NL10",null,"0003","Nicoleta Marinescu",null,null,null,"B-56-030"]
[3831,"13/04/2026 14:46:02",null,"SERV.477.74732",null,1,"NL10",null,"TFLJ","Nicoleta Marinescu",null,null,null,"R-14-028A"]
[3830,"13/04/2026 14:45:49",null,"SERV.502.18139",null,1,"NL10",null,"TCAL","Nicoleta Marinescu",null,null,null,"B-08-021"]
[3829,"13/04/2026 14:45:32",null,"SERV.483.22054",null,1,"NL10",null,"0005","Nicoleta Marinescu",null,null,null,"B-72-049"]
[3828,"13/04/2026 14:45:17",null,"SERV.655.08961",null,1,"NL10",null,"0005","Nicoleta Marinescu",null,null,null,"B-72-035"]
[3827,"13/04/2026 14:45:05",null,"SERV.453.42271",null,1,"NL10",null,"D010","Nicoleta Marinescu",null,null,null,"B-62-047"]
[3826,"13/04/2026 14:42:00",null,"SERV.502.28286",null,2,"NL10",null,"0003","Nicoleta Marinescu",null,null,null,"R-46-061A"]
[3825,"13/04/2026 14:41:48",null,"SERV.670.12751",null,1,"NL10",null,"0005","Nicoleta Marinescu",null,null,null,"R-14-031G"]
[3824,"13/04/2026 14:41:31",null,"SERV.502.18653",null,1,"NL10",null,"0005","Nicoleta Marinescu",null,null,null,"R-14-031G"]
[3823,"13/04/2026 14:41:20",null,"SERV.477.21001",null,1,"NL10",null,"0005","Nicoleta Marinescu",null,null,null,"R-14-031G"]
[3822,"13/04/2026 14:41:09",null,"SERV.487.87652",null,1,"NL10",null,"0005","Nicoleta Marinescu",null,null,null,"R-14-031G"]
[3821,"13/04/2026 14:40:55",null,"SERV.502.17646",null,2,"NL10",null,"DMRP","Nicoleta Marinescu",null,null,null,"B-62-037"]
[3820,"13/04/2026 14:37:50",null,"SERV.674.85801",null,1,"NL10",null,"0005","Nicoleta Marinescu",null,null,null,"B-72-035"]
[3819,"13/04/2026 14:37:27",null,"SERV.674.85801",null,1,"NL10",null,"0005","Nicoleta Marinescu",null,null,null,"B"]
[3818,"13/04/2026 14:37:14",null,"SERV.502.32632",null,3,"NL10",null,"0001","Nicoleta Marinescu",null,null,null,"B-58-034"]
[3817,"13/04/2026 13:16:37",null,"SERV.625.41306",null,1,"NL10",null,"0005","Nicoleta Marinescu",null,null,null,"R-16-146C"]
[3816,"13/04/2026 13:16:22",null,"SERV.644.14031",null,1,"NL10",null,"TFLJ","Nicoleta Marinescu",null,null,null,"R-14-052M"]
[3815,"13/04/2026 13:16:08",null,"SERV.436.05882",null,1,"NL10",null,"0005","Nicoleta Marinescu",null,null,null,"R-16-152C"]
[3814,"13/04/2026 13:15:54",null,"SERV.472.63194",null,1,"NL10",null,"0005","Nicoleta Marinescu",null,null,null,"R-16-152C"]
[3813,"13/04/2026 13:15:37",null,"SERV.638.98231",null,1,"NL10",null,"0005","Nicoleta Marinescu",null,null,null,"R-16-146C"]
[3812,"13/04/2026 13:15:23",null,"SERV.681.76433",null,1,"NL10",null,"0005","Nicoleta Marinescu",null,null,null,"R-16-146C"]
[3811,"13/04/2026 13:15:09",null,"SERV.436.67361",null,1,"NL10",null,"0003","Nicoleta Marinescu",null,null,null,"R-47-103A"]
[3810,"13/04/2026 13:14:55",null,"SERV.672.19632",null,2,"NL10",null,"0001","Nicoleta Marinescu",null,null,null,"R-40-097A"]
[3809,"13/04/2026 11:33:10",null,"SERV.632.39942",null,2,"NL10",null,"TCAL","Nicoleta Marinescu",null,null,null,"R-13-023C"]
[3808,"13/04/2026 11:32:59",null,"SERV.644.52812",null,1,"NL10",null,"TFLJ","Nicoleta Marinescu",null,null,null,"R-14-044C"]
[3807,"13/04/2026 11:32:47",null,"SERV.489.54287",null,1,"NL10",null,"TCER","Nicoleta Marinescu",null,null,null,"R-13-061A"]
[3806,"13/04/2026 11:32:33",null,"SERV.472.37252",null,1,"NL10",null,"TCAL","Nicoleta Marinescu",null,null,null,"R-13-023C"]
[3805,"13/04/2026 11:32:19",null,"SERV.644.52812",null,1,"NL10",null,"TCAL","Nicoleta Marinescu",null,null,null,"R-13-023C"]
[3804,"13/04/2026 11:32:07",null,"SERV.655.48781",null,1,"NL10",null,"TCAL","Nicoleta Marinescu",null,null,null,"R-13-023C"]
[3803,"13/04/2026 11:31:51",null,"SERV.699.23241",null,1,"NL10",null,"TCAL","Nicoleta Marinescu",null,null,null,"R-13-023C"]
[3802,"13/04/2026 11:31:37",null,"SERV.638.07665",null,1,"NL10",null,"TCAL","Nicoleta Marinescu",null,null,null,"R-13-023C"]
[3801,"13/04/2026 11:29:47",null,"SERV.477.26938",null,1,"NL10",null,"0003","Nicoleta Marinescu",null,null,null,"R-45-097P"]
[3800,"13/04/2026 11:29:34",null,"SERV.659.98452",null,1,"NL10",null,"0003","Nicoleta Marinescu",null,null,null,"B-58-038"]
[3799,"13/04/2026 11:29:21",null,"SERV.487.62321",null,2,"NL10",null,"0005","Nicoleta Marinescu",null,null,null,"R-16-088C"]
[3798,"13/04/2026 11:29:06",null,"SERV.502.18667",null,1,"NL10",null,"0005","Nicoleta Marinescu",null,null,null,"R-16-088C"]
[3797,"13/04/2026 11:28:54",null,"SERV.453.64141",null,1,"NL10",null,"0005","Nicoleta Marinescu",null,null,null,"R-16-088C"]
[3796,"13/04/2026 11:28:40",null,"SERV.483.48202",null,1,"NL10",null,"0005","Nicoleta Marinescu",null,null,null,"R-16-088C"]
[3795,"13/04/2026 11:28:24",null,"SERV.489.73835",null,1,"NL10",null,"0005","Nicoleta Marinescu",null,null,null,"R-16-118C"]
[3794,"13/04/2026 11:28:11",null,"SERV.649.71885",null,1,"NL10",null,"0005","Nicoleta Marinescu",null,null,null,"R-16-118C"]
[3793,"13/04/2026 11:27:58",null,"SERV.656.07892",null,1,"NL10",null,"0005","Nicoleta Marinescu",null,null,null,"R-16-118C"]
[3792,"13/04/2026 11:27:48",null,"SERV.656.07892",null,1,"NL10",null,"0005","Nicoleta Marinescu",null,null,null,"R-16-118"]
[3791,"13/04/2026 11:27:36",null,"SERV.638.92791",null,1,"NL10",null,"0005","Nicoleta Marinescu",null,null,null,"R-16-118C"]
[3790,"13/04/2026 11:27:23",null,"SERV.670.20052",null,1,"NL10",null,"0005","Nicoleta Marinescu",null,null,null,"R-16-118C"]
[3789,"13/04/2026 11:27:11",null,"SERV.702.72571",null,1,"NL10",null,"0005","Nicoleta Marinescu",null,null,null,"B-72-041"]
[3788,"13/04/2026 11:26:53",null,"SERV.652.01992",null,1,"NL10",null,"0003","Nicoleta Marinescu",null,null,null,"B-58-043"]
[3787,"13/04/2026 11:26:41",null,"SERV.502.18663",null,1,"NL10",null,"0003","Nicoleta Marinescu",null,null,null,"R-45-092P"]
[3786,"13/04/2026 11:26:27",null,"SERV.487.81705",null,null,"NL10",null,"0005","Nicoleta Marinescu",null,null,null,"B-72-043"]
[3785,"13/04/2026 11:26:13",null,"SERV.450.76034",null,1,"NL10",null,"0003","Nicoleta Marinescu",null,null,null,"R-45-094P"]
[3784,"13/04/2026 11:26:00",null,"SERV.648.84541",null,1,"NL10",null,"0005","Nicoleta Marinescu",null,"R-14-047A",null,"R-14-043A"]

{"sheet":"12NC&SN","index":3,"n_rows":17,"n_cols":5,"rows_kept":17,"cut":false,"hidden":false,"merged":[[3,0,15,3],[3,4,15,13],[16,4,29,13],[16,0,29,3]]}
[]
[]
[]
["12NC",null,null,null,"4022.123.12345"]
[]
[]
[]
[]
[]
[]
[]
[]
[]
[]
[]
[]
["SN",null,null,null,"1000924213"]

{"sheet":"SET","index":4,"n_rows":27,"n_cols":5,"rows_kept":27,"cut":false,"hidden":false,"merged":[[17,0,25,3],[17,4,25,13],[26,0,29,3],[26,4,29,13],[3,0,7,3],[3,4,7,13],[8,0,16,3],[8,4,16,13]]}
[]
[]
[]
["12NC",null,null,null,"4022.123.12345"]
[]
[]
[]
[]
["SN",null,null,null,854744]
[]
[]
[]
[]
[]
[]
[]
[]
["SET",null,null,null,"6/6"]
[]
[]
[]
[]
[]
[]
[]
[]
["ATTENTION!",null,null,null,"ITEM CONTAINS MORE THEN 1 COLLI!"]

{"sheet":"Transport order ","index":5,"n_rows":37,"n_cols":25,"rows_kept":37,"cut":false,"hidden":false,"merged":[[30,7,30,9],[12,7,12,8],[12,5,12,6],[13,6,13,8],[23,1,23,4],[23,5,23,8],[27,1,27,4],[27,5,27,8],[20,1,20,4],[20,5,20,8],[22,1,22,4],[22,5,22,8],[29,0,29,1],[29,2,29,6],[30,0,30,1],[30,2,30,6],[5,1,6,1],[9,0,9,9],[3,0,8,0],[10,0,15,0],[5,3,5,4],[6,3,6,4],[29,7,29,9],[28,1,28,4],[28,5,28,8],[11,1,11,4],[12,1,12,4],[11,5,11,6],[11,7,11,8],[24,1,24,4],[24,5,24,8],[26,1,26,4],[26,5,26,8],[18,1,18,4],[18,5,18,8],[25,1,25,4],[25,5,25,8],[19,5,19,8],[21,1,21,4],[21,5,21,8],[0,0,0,9],[1,0,1,9],[3,1,3,2],[4,3,4,8],[17,1,17,4],[17,5,17,8],[2,0,2,9],[5,5,5,6],[14,6,14,8],[16,0,16,9],[5,7,5,8],[6,7,6,8],[6,5,6,6],[19,1,19,4]]}
["TRANSPORT ORDER *"]
[" * does not apply to empty / return packaging"]
["Sender details"]
["Sending from ",null,null,null,null,null,null,null,null,null,null,null,null,null,null,null,null,null,null,null,null,null,null,null,4]
[null,"Building",null,"By whom",null,null,null,null,null,null,null,null," "," ",null,null,null,null,null,null,null,null,null,null,9]
[null,"Weert2",null,"Name",null,"Department",null,"Contact details"]
[null,null,null,"Ivan Olah",null,"STAGNATION",null,"ivan.olah@asml.com",null,null,null,null,null,null,null,null,null,null,null,null,null,null,null,null,21]
[null,null,null,"Sent on",{"$f":"TODAY()","v":"2026-04-13"},"at",{"$f":"NOW()","v":46125.678333101852}]
[]
[40221231234]
["Sending to ",null,null,null,null,null,null,null,null,null,null,null,null,null," "]
[null,null,null,null,null," Building",null,"Department"]
[null,"For the attention of:",null,null,null,"5L",null,null,null,null,null,null,null," "]
[null,null,null,null,null,"Name"]
[null,null,null,null,null,"Contact details "]
[]
["SHIPMENT DETAILS"]
["#","12NC/AWB/TO",null,null,null,"DN / PO / TRS",null,null,null,"Quantity"]
[1,null,null,null,null,null,null,null,null,1]
[2]
[3]
[4]
[5]
[6]
[7]
[8]
[9]
[10]
[11]
["Pallet # ",null,"Comment",null,null,null,null,"Driver name & signature"]
[null,null,null,null,null,null,null,"….....................................\n\n"]
[]
[]
[]
[]
[]
[null,null,null,null," "]

{"sheet":"VR Booking","index":6,"n_rows":17,"n_cols":3,"rows_kept":17,"cut":false,"hidden":false,"merged":[[1,1,1,2],[7,1,7,2]]}
[]
[null,"VR BOOKING"]
[]
[null,"BarcodeID","000000001000344840"]
[]
[]
[]
[null,"RESULTS"]
[null,"MN","211722969"]
[null,"ZQMATR","YES3"]
[null,"ZQSOLUT","UPG3"]
[null,"Detect code","W"]
[null,"Matrix","OK"]
[null,"Tool / Part","Tool"]
[null,"Correct booking","0008"]
[null,"Booked To","NL10 / 0008 (Correct)"]
[null,"12NC","SERV.667.70703 (SERV.667.70703)"]

{"sheet":"VR Matrix Parts","index":7,"n_rows":9,"n_cols":3,"rows_kept":9,"cut":false,"hidden":false,"merged":[[1,1,1,2]]}
[]
[null,"PARTS"]
[]
[null,"ZQMATR ","YES1"]
[null,"ZQSOLUT","NFF1"]
[null,"Result",{"$f":"_xlfn.LET(_xlpm.v,UPPER(TRIM('VR Data Parts'!C13)),\n IF(_xlpm.v=\"OK\",'VR Data Parts'!I16,\n IF(_xlpm.v=\"NOK\",'VR Data Parts'!I17,\n IF(_xlpm.v=\"TICKET\",'VR Data Parts'!I18,\"\"))))","v":""}]
[null,"Check MN Detection code ","W"]
[null,{"$f":"IF($C$7=\"W\",\"VAR flag message is \"\"TOP 40 NFF MH\"\"?\",\"Result\")","v":"VAR flag message is \"TOP 40 NFF MH\"?"},"Yes"]
[null,"Result",{"$f":"IF($C$7=\"W\",_xlfn.XLOOKUP($C$8,'VR Data Parts'!$H$12:$H$13,'VR Data Parts'!$I$12:$I$13,\"\"),\"\")","v":"Book to D011"}]

{"sheet":"VR Matrix Tools","index":8,"n_rows":8,"n_cols":3,"rows_kept":8,"cut":false,"hidden":false,"merged":[[1,1,1,2]]}
[]
[null,"TOOLS "]
[]
[null,"ZQMATR ","YES1"]
[null,"ZQSOLUT","UPG4"]
[null,"NEFAB?","NO"]
[null,"Result",{"$f":"_xlfn.LET(_xlpm.v,UPPER(TRIM('VR Data Tools'!C12)),IF(_xlpm.v=\"OK\",'VR Data Tools'!H2,IF(_xlpm.v=\"NOK\",'VR Data Tools'!H3,IF(_xlpm.v=\"TICKET\",'VR Data Tools'!H4,\"\"))))","v":"Create ticket"}]
[null,"Extra info",{"$f":"'VR Data Tools'!C12","v":"Ticket"}]

{"sheet":"Config_SLOC","index":9,"n_rows":3,"n_cols":1,"rows_kept":3,"cut":false,"hidden":true,"merged":[]}
["Origin SLOC Options"]
[5500]
[5510]

{"sheet":"ZMEC-ZPACK form","index":10,"n_rows":24,"n_cols":10,"rows_kept":24,"cut":false,"hidden":false,"merged":[[14,9,16,10],[14,11,16,12],[23,1,24,3],[23,4,24,6],[11,9,11,12],[14,1,18,3],[14,4,18,6],[17,9,19,10],[13,9,13,10],[12,9,12,10],[17,11,19,12],[13,11,13,12],[12,11,12,12],[13,1,13,3],[1,9,9,12],[9,1,9,3],[19,1,20,3],[19,4,20,6],[21,9,30,12],[1,1,1,3],[5,1,5,3],[7,1,7,3],[3,1,3,2],[10,1,10,3],[3,3,3,4],[1,4,1,6],[12,4,13,6],[9,4,10,6],[21,1,22,3],[21,4,22,6]]}
[]
[null,"Flow:Vendor",null,null,"Service parts --> SLOC 0001",null,null,null,null,"4022.xxx.xxxxx  Barcode Label"]
[]
[null,"Booked By:",null,"IVAN OLAH",null,"Date:",{"$f":"TODAY()","v":"2026-04-13"}]
[]
[null,"Origin SLOC:",null,null,5510,"Plant :","NL10"]
[]
[null,"Type Prod. Order:",null,null,"ZP18","Service Level:","Routine"]
[]
[null,"Material Notification",null,null,{"$f":"\"*\"&B11&\"*\"","v":"**"}]
[]
[null,null,null,null,null,null,null,null,null,"DOA checks (12NC, quantity, serial number) done by:"]
[null,"Production order",null,null,{"$f":"\"*\"&B14&\"*\"","v":"**"},null,null,null,null,"Material intake(12NC, quantity, serial number)"]
[null,null,null,null,null,null,null,null,null,"Pre Clean (12NC, quantity, serial number)"]
[null,"Cleaning Code \nMain component:",null,null,"AC   MC   NC  VA   VB   VM   VN   VT   Q2   Q4   QV",null,null,null,null,"CP prepper (serial number)"]
[]
[]
[null,null,null,null,null,null,null,null,null,"CP packer (12NC, quantity)"]
[]
[null,"VMI needed",null,null,"Yes     /     No"]
[]
[null,"Wrong routing",null,null,"Yes     /     No",null,null,null,null,"serv.xx.xx barcode label"]
[]
[null,"QCTR check",null,null,"Yes     /     No"]

{"sheet":"Putaway C4C","index":11,"n_rows":38,"n_cols":62,"rows_kept":38,"cut":false,"hidden":false,"merged":[[0,69,0,88],[23,44,23,55],[24,21,24,31],[24,32,24,43],[24,44,24,55],[11,1,19,55],[21,1,22,6],[21,7,22,19],[21,21,22,31],[21,32,22,43],[21,44,22,55],[2,1,10,55],[0,15,0,30],[0,31,0,55],[0,60,0,61],[0,62,0,68],[23,1,24,6],[23,7,24,19],[23,21,23,31],[23,32,23,43],[25,1,25,6],[25,7,25,19],[25,21,25,31],[25,32,25,43],[25,44,25,55],[34,1,35,7],[34,8,35,19],[27,1,28,19],[27,21,28,55],[29,1,30,19],[29,21,30,55],[31,1,32,19],[31,21,32,55],[26,1,26,19]]}
[null,null,null,null,null,null,null,null,null,null,null,null,null,null,null,"Ticket Putaway form",null,null,null,null,null,null,null,null,null,null,null,null,null,null,null,{"$f":"NOW()","v":"2026-04-13T16:16:47.980"}]
[]
[null,435868]
[]
[]
[]
[]
[]
[]
[]
[]
[null,{"$f":"_xlfn.IMAGE(\"https://quickchart.io/qr?text=\" & TEXT(B3,\"0\") & \"&format=png\")","v":{"$error":"#VALUE!"}}]
[]
[]
[]
[]
[]
[]
[]
[]
[]
[null,"TICKET BY",null,null,null,null,null,"Name",null,null,null,null,null,null,null,null,null,null,null,null,null,"SUPPLIER INBOUND",null,null,null,null,null,null,null,null,null,null,"INBOUND NL",null,null,null,null,null,null,null,null,null,null,null,"INBOUND OTHER"]
[]
[null,"Date:",null,null,null,null,null,{"$f":"NOW()","v":"2026-04-13T16:16:47.980"},null,null,null,null,null,null,null,null,null,null,null,null,null,"LOCATIONS",null,null,null,null,null,null,null,null,null,null,"LOCATIONS",null,null,null,null,null,null,null,null,null,null,null,"LOCATIONS"]
[null,null,null,null,null,null,null,null,null,null,null,null,null,null,null,null,null,null,null,null,null,"R-17-002 / R-17-016",null,null,null,null,null,null,null,null,null,null,"R-17-018 / R-17-032",null,null,null,null,null,null,null,null,null,null,null,"R-17-034 / R-17-048"]
[null,"Time:",null,null,null,null,null,{"$f":"NOW()","v":46125.678333101852},null,null,null,null,null,null,null,null,null,null,null,null,null,"ISA-188 / ISA-170",null,null,null,null,null,null,null,null,null,null,"ISA-169 / ISA-150",null,null,null,null,null,null,null,null,null,null,null,"ISA-149 / ISA-130"]
[null,"LOCATION:"]
[null,"SUPPLIER INBOUND",null,null,null,null,null,null,null,null,null,null,null,null,null,null,null,null,null,null,null,"PUTAWAYED IN:"]
[]
[null,"INBOUND NL",null,null,null,null,null,null,null,null,null,null,null,null,null,null,null,null,null,null,null,"RACKING:                                 R-17-"]
[]
[null,"INBOUND OTHER",null,null,null,null,null,null,null,null,null,null,null,null,null,null,null,null,null,null,null,"SHELVING/BULK:                   ISA-",null,null,null,null,null,null,null,null,null,null,null,null,null,null,null,null,null,null,null,null,null,null,null,null,null,null,null,null,null,null,null,null,null,null,null,null,null,null,null,"s"]
[]
[]
[null,"QTY",null,null,null,null,null,null,1,null,null,null,null,null,null,null,null,null,null,null,null,null,null,null,null,null,null,null,null,null,null,null,null,null,null,null,"Bring the form back to the Ticket Handler!"]
[]
[null,"ZBIN:",null,null,null,null,null,null,null,null,null,null,null,null,null,null,null,null,null,null,null,"Driver:",null,null,null,null,null,null,null,null,null,null,null,null,null,null,null,"QTY Loc.",null,null,null,null,null,null,null,"Time:"]
[null,null,null,null,null,null,null,null,null,null,null,null,null,null,null,null,null,null,null,null,null,null,null,null,null,null,null,null,null,null,null,null,null,null,null,null,null,null,null,null,null,null,null,null,null,"Date:",null,null,{"$f":"TODAY()","v":"2026-04-13"}]

{"sheet":"C4C A4","index":12,"n_rows":20,"n_cols":1,"rows_kept":20,"cut":false,"hidden":false,"merged":[[5,0,16,12],[19,0,33,12]]}
[]
[]
[]
[]
[]
["C4C"]
[]
[]
[]
[]
[]
[]
[]
[]
[]
[]
[]
[]
[]
["12345"]

{"sheet":"C4C Handover","index":13,"n_rows":34,"n_cols":7,"rows_kept":34,"cut":false,"hidden":false,"merged":[[0,2,1,6],[2,0,5,0],[2,1,5,4],[2,6,2,8],[3,6,3,8],[4,5,4,8],[5,5,5,8],[6,0,9,0],[6,1,9,4],[6,5,9,8],[10,0,10,8],[11,0,15,4],[11,6,11,8],[12,6,12,8],[13,6,13,8],[14,6,14,8],[15,6,15,8],[16,0,16,4],[16,6,16,8],[17,0,18,2],[17,3,18,8],[19,0,19,3],[19,6,19,8],[20,0,20,3],[20,6,20,8],[21,0,21,3],[21,6,21,8],[22,0,22,3],[22,6,22,8],[23,0,23,3],[23,6,23,8],[24,0,24,3],[24,6,24,8],[25,0,25,3],[25,6,25,8],[26,0,26,3],[26,6,26,8],[27,0,27,3],[27,6,27,8],[28,0,28,3],[28,6,28,8],[29,0,29,3],[29,6,29,8],[30,0,30,3],[30,6,30,8],[31,0,31,3],[31,6,31,8],[32,0,32,3],[32,6,32,8],[33,0,33,3],[33,6,33,8],[34,0,46,8]]}
[null,null,"STAGNATION FORM INBOUND"]
[]
["DATE TIME ",{"$f":"NOW()","v":"2026-04-13T16:16:47.980"},null,null,null,"Name"]
[null,null,null,null,null,"FLOW"]
[null,null,null,null,null,"SCAN TIME LABEL BELLOW"]
[]
["C4C",null,null,null,null,{"$f":"_xlfn.IMAGE(\"https://barcode.tec-it.com/barcode.ashx?data=\" & F6 & \"&code=Code128&translate-esc=true\")","v":{"$error":"#VALUE!"}}]
[]
[]
[]
["Describe the issue:"]
[null,null,null,null,null,"QTY:"]
[null,null,null,null,null,"12NC:"]
[null,null,null,null,null,"BID:"]
[null,null,null,null,null,"S/N:"]
[null,null,null,null,null,"PO/LINE:"]
["          SCAN MRN BELLOW",null,null,null,null,"DN:"]
[null,null,null,{"$f":"_xlfn.IMAGE(\"https://barcode.tec-it.com/barcode.ashx?data=\" & A18 & \"&code=Code128&translate-esc=true\")","v":{"$error":"#VALUE!"}}]
[]
["No data",null,null,null,null,null,"Packed together"]
["ASN is not active ( no inb. delivery )",null,null,null,null,null,"Mismatch S/N"]
["Mismatch 12NC",null,null,null,null,null,"Return order / 89DN"]
["Zqsolut not filled in ",null,null,null,null,null,"Wrongly delivered"]
["Wrong combination for repair matrix ",null,null,null,null,null,"Missing documents"]
["ASEQ status",null,null,null,null,null,"Error message in SAP"]
["BID is not active in SAP",null,null,null,null,null,"DN cannot be processed"]
["Missing label on outside packaging",null,null,null,null,null,"Damaged item - good stock"]
["PO is not yet released",null,null,null,null,null,"Found item"]
["Po is already booked",null,null,null,null,null,"Need reversal(wrongly booked)"]
["Quantity: too less ( MANCO ) ",null,null,null,null,null,"Same label on multiple boxes"]
["Quantity: too much",null,null,null,null,null,"PRR not signed"]
["Shelf life missing",null,null,null,null,null,"Missing part of set"]
["Quality Inspection lot issue",null,null,null,null,null,"Deficit of stock"]
["Missing packaging ( SERV only )",null,null,null,null,null,"SCRAP status active"]

{"sheet":"C4C Matrix","index":14,"n_rows":72,"n_cols":10,"rows_kept":72,"cut":false,"hidden":false,"merged":[[47,7,47,8],[48,7,48,8],[49,7,49,8],[50,7,50,8],[51,7,51,8],[69,7,69,8],[70,7,70,8],[71,7,71,8],[66,7,66,8],[65,7,65,8],[67,7,67,8],[39,7,39,8],[46,7,46,8],[28,7,28,8],[29,7,29,8],[30,7,30,8],[31,7,31,8],[45,7,45,8],[33,7,33,8],[34,7,34,8],[36,7,36,8],[37,7,37,8],[40,7,40,8],[41,7,41,8],[42,7,42,8],[43,7,43,8],[44,7,44,8],[64,7,64,8],[63,7,63,8],[52,7,52,8],[53,7,53,8],[54,7,54,8],[55,7,55,8],[56,7,56,8],[57,7,57,8],[62,7,62,8],[58,7,58,8],[59,7,59,8],[60,7,60,8],[12,3,13,3],[38,7,38,8],[4,5,5,5],[4,4,5,4],[32,7,32,8],[21,7,21,8],[22,7,22,8],[23,7,23,8],[24,7,24,8],[25,7,25,8],[26,7,26,8],[27,7,27,8],[12,9,13,9],[0,2,0,6],[17,7,17,8],[18,7,18,8],[20,7,20,8],[19,7,19,8],[1,7,1,8],[6,4,7,4],[6,5,7,5],[6,6,7,6],[4,6,5,6],[4,2,5,2],[15,2,15,8],[12,6,13,6],[12,5,13,5],[12,4,13,4],[4,9,5,9],[6,9,7,9],[9,9,10,9],[6,3,7,3],[4,3,5,3],[9,6,10,6],[9,5,10,5],[9,4,10,4],[9,3,10,3],[12,0,13,0],[9,1,10,1],[4,0,5,0],[6,1,7,1],[6,2,7,2],[12,1,13,1],[12,2,13,2],[4,1,5,1],[9,2,10,2]]}
[null,"REASON FOR TRS","CREATION OF C4C SERVICE TICKET",null,null,null,null,"5L","RPH"]
["FLOW","Describtion of issues between DHL buildings.","Ticket type","Location","Level 1","Level 2","Level 3","Assigned to",null,"COMMENT"]
["CSL","Items are delivered to wrong building ( from Supplier or from STO )","Supply WHS - 3PL-Logistical Disturbance","NL10/NL05 DHL SPL Weert","Inbound","Inbound from other WH NL","Wrong WH Location wrongly delivered","NL01 DHL 5L Inbound Stagnation & WAC","NL16 RPH DHL Stagnation","Shipment has been wrongly delivered to our warehouse"]
["CSL","Stock check request in another building ","Supply WHS - 3PL-Logistical Disturbance","NL10/NL05 DHL SPL Weert","Inventory Management","Inventory Management","Stock check request","NL01 5L DHL Stockcontrol","NL16 RPH DHL Stockcontrol","Stock check required due to operational needs. ( Specify reason for stock check )"]
["CSL","Sto delivered with wrong 12NC","Supply WHS - 3PL-Logistical Disturbance","NL10/NL05 DHL SPL Weert","Inventory Management","Delivery","Wrong material delivered","First line Support : NL01 DHL 5L Customer Service","First line Support NL16 RPH DHL Outbound","Wrong material has been delivered/unloaded in our warehouse"]
[null,null,null,null,null,null,null,"2nd line support : NL01 5L DHL Stockcontrol","2nd line Support : NL16 RPH DHL Stockcontrol"]
["CSL","Sto delivered with wrong Qty","Supply WHS - 3PL-Logistical Disturbance","NL10/NL05 DHL SPL Weert","Inbound","Inbound from other warehouse NL","Incorrect Quantity ","First line Support : NL01 DHL 5L Customer Service","First line Support NL16 RPH DHL Outbound","Incorrect quantity has been received in our warehouse "]
["CSL",null,null,null,null,null,null,"2nd line support : NL01 5L DHL Stockcontrol","2nd line Support : NL16 RPH DHL Stockcontrol"]
["CSL","Sto delivered with wrong SN","Supply WHS - 3PL-Logistical Disturbance","NL10/NL05 DHL SPL Weert","Inbound","Inbound from other warehouse NL","Mismatch Ser.nr: Diff Ser.Nr Paper/Part","NL01 5L DHL Stockcontrol","NL16 RPH DHL Stockcontrol","Shipment received for which we are facing mismatch serial number between paper & part"]
["CSL","STO is not delivered at all (for example noticed via open PO file) - not mandatory","Supply WHS - 3PL-Logistical Disturbance","NL10/NL05 DHL SPL Weert","Inbound","Inbound from other warehouse NL","Internal Flow : Lost/Missing item","First line Support : NL01 DHL 5L Customer Service","First line Support NL16 RPH DHL Outbound","Item(s) missing from this shipment. "]
["CSL",null,null,null,null,null,null,"2nd line support : NL01 5L DHL Stockcontrol","2nd line Support  NL16 RPH DHL Stockcontrol"]
["CSL","Missing documents","Supply WHS - 3PL-Logistical Disturbance","NL10/NL05 DHL SPL Weert","Inbound","Inbound from other warehouse NL","Missing Papers : Missing Packing List","First line Support : NL01 DHL 5L Customer Service","First line Support NL16 RPH DHL Outbound","Shipment received without documents"]
["CSL","no PO open to book materials (most probably PGI not done)","Supply WHS - 3PL-Logistical Disturbance","NL10/NL05 DHL SPL Weert","Inbound","Inbound from other warehouse NL","Issue Processing DN In 3PL WMS","First line Support : NL01 DHL 5L Customer Service","First line Support NL16 RPH DHL Outbound","No open PO found for order received "]
[null,null,null,null,null,null,null,"2nd line support : NL01 5L Inventory management","2nd line Support : LSO Inventory Controller"]
["CSL","Additional material(s) (12NC's) delivered with STO ","Supply WHS - 3PL-Logistical Disturbance","NL10/NL05 DHL SPL Weert","Inbound","Inbound from other warehouse NL","Internal Flow: Found Item","NL01 5L DHL Stockcontrol","NL16 RPH DHL Stockcontrol","Extra item(s) have been received within a shipment"]
["CSL","Damaged material ","NEVER REJECT DAMAGED STO!  Book the STO and folllow damage process in your warehouse ( no c4c ticket to be created to shipping party)  "]
[]
["FLOW","REASON FOR TRS","Assigned to","Service and Support Team","Category Level 1","Category Level 2","Category Level 3","Order",null,"Comment"]
["FSD","Item presents visible damage ","Maria Murariu","ASML CSCM PI&C","Inbound","Inbound from other warehouse Other","Damaged Container Or Parcel","*DN*",null,"Item/shipment present visible damage and cannot be received in good stock"]
["FSD","Different material number between order and part","Maria Murariu","ASML CSCM PI&C","Inbound","Inbound from other warehouse Other","Diff.material nr inbound order & part","*DN*",null,"Item cannot be booked to stock due to a mismatch between inbound order and part"]
["FSD","Error message caused because of barcoding issues","Maria Murariu","ASML CSCM PI&C","Inbound","Inbound from other warehouse Other","Error Msg: Barcode Status Issues","*DN*",null,"Item cannot be booked to stock due to barcode status issues"]
["FSD","Unexpected error message is shown in SAP","Maria Murariu","ASML CSCM PI&C","Inbound","Inbound from other warehouse Other","Error Msg: Syst.Specific Msg-See Comment","*DN*",null,"We are not able to book this material on stock due to an unexpected Error message"]
["FSD","DN cannot be processed ","Maria Murariu","ASML CSCM PI&C","Inbound","Inbound from other warehouse Other","Issue Processing DN in 3PL WMS","*DN*",null,"We are facing issues while processing the DN that belongs to an item"]
["FSD","Incorrect quantity of materials were physically received","Maria Murariu","ASML CSCM PI&C","Inbound","Inbound from other warehouse Other","Incorrect Quantity","*DN*",null,"We have received incorrect quantity for a material/shipment"]
["FSD","ID label not present on the part","Maria Murariu","ASML CSCM PI&C","Inbound","Inbound from other warehouse Other","Missing Info: No Material Nr/ID On Part","*DN*",null,"Material number or ID label from the part itself is missing"]
["FSD","Labels are not present on the outside packaging","Maria Murariu","ASML CSCM PI&C","Inbound","Inbound from other warehouse Other","Material label missing on outside pack","*DN*",null,"Material label is missing on the packaging outside "]
["FSD","Customs Documents are missing for a shipment","N/A","NL01/NL10 DHL SPL CS","Inbound","Inbound from other warehouse Other","Missing Papers: Missing Customs Docum.","*DN*",null,"We are missing information to process the material, specifically Customs Documents"]
["FSD","Invoice(s) is missing from a shipment","N/A","NL01/NL10 DHL SPL CS","Inbound","Inbound from other warehouse Other","Missing Papers: Missing Invoice","*DN*",null,"We are missing information to process the material, specifically the Invoice document"]
["FSD","Mismatch of SN between Paper and Part","Maria Murariu","ASML CSCM PI&C","Inbound","Inbound from other warehouse Other","Mismatch Ser.nr: Diff Ser.Nr Paper/Part","*DN*",null,"Item cannot be booked to stock due to a mismatch between serial number on the delivery and part"]
["FSD","Missing SN on the outside packaging","Maria Murariu","ASML CSCM PI&C","Inbound","Inbound from other warehouse Other","Missing serial number on outer box","*DN*",null,"Serial number is missing on the labels of the packaging outside"]
["FSD","Non-Stock shipment/89DN ","N/A","NL01/NL10 DHL SPL CS","Inbound","Inbound from other warehouse Other","Non-Stock: Unkown Contactperson (89 Dn)","*DN*",null,"We have received a shipment with 89DN that should be registered in the WIT"]
["FSD","Error message 'No open PO items found for Material Number","Maria Murariu","ASML CSCM PI&C","Inbound","Inbound from other warehouse Other","Receiving - No Open PO Itm Found f Mat. ","*DN*",null,"Item cannot be booked to stock due to Error message 'No Open PO Item found for Material Number"]
["FSD","BID number not active in SAP","Maria Murariu","ASML CSCM PI&C","Inbound","Inbound from other warehouse Other","Receiving - Material Id Unknown In Wms","*DN*",null,"We cannot receive this item on stock as the BID number is not active in SAP"]
["FSD","Material Notification is missing on LifeCycle","Maria Murariu","ASML CSCM PI&C","Inbound","Inbound from other warehouse Other","Missing Papers: Missing Mat. Notific.","*DN*",null,"Material Notification number is missing for an item"]
["FSD","Multiple items packed together that should be booked separatedly ","Maria Murariu","ASML CSCM PI&C","Inbound","Inbound from other warehouse Other","Packing Issues: Part Packaged together","*DN*",null,"The shipment presents multiple parts packed together that should be booked to stock separatedly"]
[]
["Vendor ","Item presents visible damage ","OSM(me23n)","Supplier Operations","Inbound","Supplier inbound","Damaged Container Or Parcel","*PO*",null,"Item/shipment present visible damage and cannot be received in good stock"]
["Vendor ","Different material number between order & part","OSM(me23n)","Supplier Operations","Inbound","Supplier inbound","Diff. material nr inbound order & part ","*PO*",null,"Item cannot be booked to stock due to a mismatch between inbound order and part"]
["Vendor ","Different material number between ASN & part","OSM(me23n)","Supplier Operations","Inbound","Supplier inbound","Diff. material number between ASN & part","*PO*",null,"We are facing a Material number mismatch between ASN Packing List and part"]
["Vendor ","ASN number is not active in SAP ","OSM(me23n)","Supplier Operations","Inbound","Supplier inbound","Error Msg: ASN Number Not Active In SAP","*PO*",null,"We cannot process a PO due to Error message 'ASN number not active in SAP"]
["Vendor ","Error message caused because of barcoding issues","OSM(me23n)","Supplier Operations","Inbound","Supplier inbound","Error Msg: Barcode Status Issues","*PO*",null,"Item cannot be booked to stock due to barcode status issues"]
["Vendor ","Shipment has been delivered earlier than expected","OSM(me23n)","Supplier Operations","Inbound","Supplier inbound","Error Msg: Delivered Too Early","*PO*",null,"We cannot process a PO due to Error message 'Delivered Too Early"]
["Vendor ","Error message: 'Deletion flag set for equipment number","OSM(me23n)","Supplier Operations","Inbound","Supplier inbound","Error Msg: Equipment Deletion flag","*PO*",null,"We cannot process a PO due to Error message 'Deletion flag is set for Equipment Number"]
["Vendor ","Unexpected error message is shown in SAP","OSM(me23n)","Supplier Operations","Inbound","Supplier inbound","Error Msg: Syst.Specific Msg-See Comment","*PO*",null,"We are not able to book this material on stock due to an unexpected Error message"]
["Vendor ","Item is missing from a shipment","OSM(me23n)","Supplier Operations","Inbound","Supplier inbound","Lost / Missing Item","*PO*",null,"An item(s) is missing from a shipment "]
["Vendor ","Shelf Life Date is missing","OSM(me23n)","Supplier Operations","Inbound","Supplier inbound","Missing Info: Missing Shelf Life Date","*PO*",null,"We cannot process a PO due to Error message 'Shelf Life Date not entered'"]
["Vendor ","ZQSolut has not been filled by Supplier","OSM(me23n)","Supplier Operations","Inbound","Supplier inbound","Missing Info: ZQSOLUT Not Filled","*PO*",null,"PO cannot be processed because ZQSOLUT has not been filled by Supplier"]
["Vendor ","Invoice(s) is missing from a shipment","OSM(me23n)","Supplier Operations","Inbound","Supplier inbound","Missing Papers: Missing Invoice","*PO*",null,"We are missing information to process the material, specifically the Invoice document"]
["Vendor ","PRR has not been delivered within the material","OSM(me23n)","Supplier Operations","Inbound","Supplier inbound","Missing Papers: Missing PRR","*PO*",null,"We are missing information to process the material, specifically the PRR document"]
["Vendor ","PRR has not been signed by Supplier","OSM(me23n)","Supplier Operations","Inbound","Supplier inbound","Mismatch PRR/SAP: Problem Res.Rep.empty","*PO*",null,"We are unsure on how to correctly receive a PO on stock due to matrix booking combination not confirmed. PRR is not signed"]
["Vendor ","Mismatch SN or EQ from PRR and/or part","OSM(me23n)","Supplier Operations","Inbound","Supplier inbound","Mismatch Ser.nr: Diff. Bid/Eqnr PRR/Part","*PO*",null,"We are facing a Serial Number/Equipment Number mismatch between PRR/part"]
["Vendor ","Combination on the repair matrix is mismatching between PRR and SAP","OSM(me23n)","Supplier Operations","Inbound","Supplier inbound","Mismatch PRR/SAP:Wrong Comb.For Rep.Mtrx","*PO*",null,"We are unsure on how to correctly receive a PO on stock due to a mismatch on the matrix booking combination from the System and PRR"]
["Vendor ","No deficit of vendor stock for 12nc ","OSM(me23n)","Supplier Operations","Inbound","Supplier inbound","No stock at vendor","*PO*",null,"We cannot process a PO due to Error message 'Deficit of vendor stock for 12nc"]
["Vendor ","More pieces received than expected","OSM(me23n)","Supplier Operations","Inbound","Supplier inbound","Overdelivery","*PO*",null,"Extra item(s) have been received within a shipment"]
["Vendor ","Less pieces received than expected","OSM(me23n)","Supplier Operations","Inbound","Supplier inbound","Packing Issues: Incorr./Damaged Labeling","*PO*",null,"The item received presents packing issues because the label receive is not correct or damaged"]
["Vendor ","Multiple items packed together that should be booked separatedly ","OSM(me23n)","Supplier Operations","Inbound","Supplier inbound","Packing Issues: Part Packaged together","*PO*",null,"The shipment presents multiple parts packed together that should be booked to stock separatedly"]
["Vendor ","BID number not active in SAP","OSM(me23n)","Supplier Operations","Inbound","Supplier inbound","Receiving - Material Id Unknown In Wms","*PO*",null,"We cannot receive this item on stock as the BID number is not active in SAP"]
["Vendor ","Error message 'No open PO items found for Material Number","OSM(me23n)","Supplier Operations","Inbound","Supplier inbound","Receiving - No Open Po Itm Found f Mat.","*PO*",null,"Item cannot be booked to stock due to Error message 'No Open PO Item found for Material Number"]
["Vendor ","Less pieces received than expected","OSM(me23n)","Supplier Operations","Inbound","Supplier inbound","Underdelivery","*PO*",null,"Less items than expected have been received within a shipment"]
["Vendor ","Wrongly received in our warehouse","OSM(me23n)","Supplier Operations","Inbound","Supplier inbound","Wrong warehouse location/wrong delivered","*PO*",null,"Shipment has been wrongly delivered to our warehouse"]
["Vendor ","Error message 'Order does not contain any data' or 'No data'","Bert Claes","ASML CSCM PI&C","Inbound","Inbound from other warehouse NL","Error Msg: Syst.Specific Msg-See Comment","*PO*",null,"We are not able to book this material on stock due to an unexpected Error message"]
[]
["Customs","Non-Stock shipment/89DN ","N/A","NL01/NL10 DHL SPL CS","Inbound","Inbound from other warehouse Other","Non-Stock: Unkown Contactperson (89 Dn)","*DN*",null,"We have received a shipment with 89DN that has been cleared by IP and awaits to be registered in the WIT"]
["Customs","Return Order Shipment","N/A","NL01/NL10 DHL SPL CS","Inbound","Return from external customer","Issue Processing DN in 3PL WMS","*DN/PO*",null,"We have received a Returned Order Shipment from Carrier with(out) visible damage"]
["Customs","Incorrect quantity of materials were physically received","Maria Murariu","ASML CSCM PI&C","Inbound","Inbound from other warehouse Other","Incorrect Quantity","*DN/PO*",null,"We have received an incorrect quantity of materials for a shipment"]
["Customs","Invoice(s) is missing from a shipment","N/A","NL01/NL10 DHL SPL CS","Inbound","Inbound from other warehouse Other","Missing Papers: Missing Invoice","*DN/PO*",null,"We are missing information to process the material, specifically the Invoice document"]
["Customs","Customs Documents are missing for a shipment","N/A","NL01/NL10 DHL SPL CS","Inbound","Inbound from other warehouse Other","Missing Papers: Missing Customs Docum.","*DN/PO*",null,"We are missing information to process the material, specifically Customs Documents"]
["Customs","Booking with MRN needs to be reversed","Harry Veenhof","P&D DY GFC CE & P","Inbound","Supplier inbound","Error Msg: Syst.Specific Msg-See Comment","*DN/PO*",null,"The booking was performed wrongly, but the item has MRN, so we need permission to reverse."]
[]
["ASN block","ASN block  Delivered Too Early","OSM(me23n)","Supplier Operations","Inbound","Supplier Operations","Error Msg: Delivered Too Early","*PO*",null,"This item has been delivered before its scheduled date"]
["ASN block","ASN block QR is  not scannable","OSM(me23n)","Supplier Operations","Inbound","Supplier Operations","Error Msg: Barcode Status Issues","*PO*",null,"ASN QR document not Scannable "]
["ASN block","ASN block Missing ASN document ","OSM(me23n)","Supplier Operations","Inbound","Supplier Operations","Missing Papers: No ASN/Delivery note","*PO*",null,"ASN Packing slip not available with this shipment. "]

{"sheet":"C4C Picking list","index":15,"n_rows":41,"n_cols":26,"rows_kept":41,"cut":false,"hidden":false,"merged":[[30,22,30,24],[31,1,31,7],[33,22,33,24],[29,1,29,7],[29,8,29,15],[29,16,29,21],[29,22,29,24],[31,8,31,15],[31,16,31,21],[31,22,31,24],[32,1,32,7],[32,8,32,15],[32,16,32,21],[32,22,32,24],[34,16,34,21],[36,16,36,21],[37,16,37,21],[36,1,36,7],[36,8,36,15],[37,1,37,7],[37,8,37,15],[30,1,30,7],[30,8,30,15],[30,16,30,21],[40,16,42,25],[40,8,42,15],[38,8,39,15],[34,1,34,7],[34,8,34,15],[38,16,39,25],[36,22,36,24],[27,1,27,7],[27,8,27,15],[27,16,27,21],[27,22,27,24],[28,1,28,7],[28,8,28,15],[28,16,28,21],[28,22,28,24],[34,22,34,24],[37,22,37,24],[35,1,35,7],[35,8,35,15],[35,16,35,21],[35,22,35,24],[33,1,33,7],[33,8,33,15],[33,16,33,21],[17,8,17,15],[17,16,17,21],[17,22,17,24],[26,1,26,7],[26,8,26,15],[26,16,26,21],[26,22,26,24],[25,1,25,7],[25,8,25,15],[25,16,25,21],[25,22,25,24],[14,8,14,15],[14,16,14,21],[14,22,14,24],[16,1,16,7],[16,8,16,15],[16,16,16,21],[16,22,16,24],[24,1,24,7],[24,8,24,15],[24,16,24,21],[24,22,24,24],[23,1,23,7],[23,8,23,15],[23,16,23,21],[23,22,23,24],[22,1,22,7],[22,8,22,15],[22,16,22,21],[22,22,22,24],[18,1,18,7],[18,8,18,15],[18,16,18,21],[18,22,18,24],[17,1,17,7],[1,8,1,15],[4,16,4,21],[3,16,3,21],[21,1,21,7],[21,8,21,15],[21,16,21,21],[21,22,21,24],[11,22,11,24],[20,1,20,7],[20,8,20,15],[20,16,20,21],[20,22,20,24],[19,1,19,7],[19,8,19,15],[19,16,19,21],[19,22,19,24],[12,22,12,24],[12,1,12,7],[12,8,12,15],[13,1,13,7],[13,8,13,15],[13,16,13,21],[13,22,13,24],[14,1,14,7],[7,16,7,21],[6,1,6,7],[6,8,6,15],[15,1,15,7],[15,8,15,15],[15,16,15,21],[15,22,15,24],[0,36,0,41],[3,1,3,7],[2,22,2,24],[3,22,3,24],[4,22,4,24],[2,8,2,15],[0,26,0,35],[5,1,5,7],[5,8,5,15],[2,1,2,7],[0,16,0,25],[1,22,1,24],[1,16,1,21],[2,16,2,21],[5,16,5,21],[5,22,5,24],[1,1,1,7],[6,22,6,24],[7,1,7,7],[11,16,11,21],[3,8,3,15],[4,8,4,15],[4,1,4,7],[12,16,12,21],[7,22,7,24],[11,1,11,7],[11,8,11,15],[6,16,6,21],[10,1,10,7],[10,8,10,15],[10,16,10,21],[10,22,10,24],[8,1,8,7],[8,8,8,15],[8,16,8,21],[8,22,8,24],[9,1,9,7],[9,8,9,15],[9,16,9,21],[9,22,9,24],[7,8,7,15]]}
[null,null,null,null,null,null,null,null,null,null,null,null,"R-17-032C",null,"R-17-020C",null,"17.02.2025"]
[null,"Ticket number",null,null,null,null,null,null,"Location",null,null,null,null,null,null,null,"Quantity",null,null,null,null,null,"Remarks",null,null,"Not Found / Found ( ✘ / ✔ )"]
[]
[]
[]
[]
[]
[]
[]
[40221231234]
[]
[]
[]
[]
[]
[]
[]
[]
[]
[]
[]
[]
[111111]
[]
[]
[]
[]
[]
[]
[]
[]
[]
[]
[]
[]
[]
[]
[]
[null,null,null,null,null,null,null,null,"Requested by:"]
[]
[null,null,null,null,null,null,null,null,"Picked by:"]

{"sheet":"Kamishibai","index":16,"n_rows":17,"n_cols":1,"rows_kept":17,"cut":false,"hidden":false,"merged":[[10,1,11,1]]}
["KAMISHIBAI "]
[]
[]
[]
[]
[]
["Subject/Topic:    All warehouse personnel wear safety shoes, Hi-Viz vests and a visible badge                                  WEEK :  40"]
[]
[]
["Report:"]
["Kamishibai was performed by me on Wednesday, 2nd of October. All staff wear required stuff for their health and safety."]
[]
["Action:"]
["Visual inspection"]
[]
[]
["Checked by : Szymon Prusak"]

{"sheet":"Status","index":17,"n_rows":10,"n_cols":3,"rows_kept":10,"cut":false,"hidden":false,"merged":[[1,1,1,2]]}
[]
[null,"WORKBOOK VERSION"]
[]
[null,"Installed version","2026-04-10"]
[null,"Published version","2026-04-10"]
[]
[null,"Source","ASML SharePoint / Apps & Files"]
[null,"Details","This copy is up to date."]
[]
[null,"Status","CURRENT"]

{"sheet":"Source sheet ZMEC","index":18,"n_rows":8,"n_cols":37,"rows_kept":8,"cut":false,"hidden":true,"merged":[]}
[]
[null,null,null,null,null,null,null,null,null,null,null,null,null,null,null,null,null,null,null,null,null,null,null,null,null,null,null,null,null,null,"Flow","Origin SLOC","Plant","Type Prdord","Service level",null,"lijst"]
[null,null,null,null,null,null,null,null,null,null,null,null,null,null,null,null,null,null,null,null,null,null,null,null,null,null,null,null,null,null,"Service parts --> SLOC 0001",5500,"NL01","n.a.","Routine",null,1]
[null,null,null,null,null,null,null,null,null,null,null,null,null,null,null,null,null,null,null,null,null,null,null,null,null,null,null,null,null,null,"Cleanbench NL01 --> SLOC CI50",5510,"NL10","ZP18","Priority",null,2]
[null,null,null,null,null,null,null,null,null,null,null,null,null,null,null,null,null,null,null,null,null,null,null,null,null,null,null,null,null,null,"Other: ……………………………………","CR01","NL05","US01","Emergency",null,3]
[null,null,null,null,null,null,null,null,null,null,null,null,null,null,null,null,null,null,null,null,null,null,null,null,null,null,null,null,null,null,null,"CI99","Other: …………","Other:………",null,null,4]
[null,null,null,null,null,null,null,null,null,null,null,null,null,null,null,null,null,null,null,null,null,null,null,null,null,null,null,null,null,null,null,"Other: …………….",null,null,null,null,5]
[null,null,null,null,null,null,null,null,null,null,null,null,null,null,null,null,null,null,null,null,null,null,null,null,null,null,null,null,null,null,null,null,null,null,null,null,6]

{"sheet":"VR Source Parts","index":19,"n_rows":19,"n_cols":17,"rows_kept":19,"cut":false,"hidden":true,"merged":[[17,1,17,2],[18,1,18,5],[0,0,0,16],[11,1,11,2],[12,1,12,2],[11,3,11,16],[12,3,12,16],[13,1,13,2],[14,1,14,2],[15,1,15,2],[16,1,16,2]]}
["ZQSOLUT Solution / Repair action ZQ MN (revision date: 2147)"]
[null,null,"NFF1","NFF2 ","NFF3","NRP1, TBSC and SCP","NRP2","UCLE","UAI 1,2,3","UPG1","UPG2","UPG3","UPG4d","UPG5","UPG6","UPG7","RAI0\n"]
["NO","No Materials Returned ","Ticket","Ticket","Ticket","Ticket","Ticket","Ticket","Ticket","Ticket","Ticket","Ticket","Ticket","Ticket","Ticket","Ticket","Ticket"]
["YES","Materials Returned General","Ticket","Ticket","Ticket","Ticket","Ticket","Ticket","Ticket","Ticket","Ticket","Ticket","Ticket","Ticket","Ticket","Ticket","Ticket"]
["YES1","Analyse and repair after valid quote","Check MN Detection Code","Ticket","NOK","NOK","OK","Ticket","Ticket","Ticket","OK","Ticket","Ticket","Ticket","Ticket","Ticket","NOK"]
["YES2","Upgrade after valid quote","Ticket","Ticket","NOK","NOK","Ticket","Ticket","Ticket","OK","Ticket","OK","Ticket","Ticket","Ticket","Ticket","NOK"]
["YES3","Repair and upgrade after valid qoute","Check MN Detection Code","Check MN Detection Code","NOK","NOK","OK","Ticket","Ticket","Ticket","Ticket","OK","Ticket","Ticket","Ticket","Ticket","NOK"]
["YES4","Mat. ret. to be requalified","Check MN Detection Code","Ticket","NOK","NOK","Ticket","Ticket","Ticket","Ticket","OK","Ticket","Ticket","Ticket","Ticket","Ticket","NOK"]
["YES5","Mat. ret. to be analysed only / Do not repair","Check MN Detection Code","Ticket","NOK","NOK","OK","Ticket","Ticket","Ticket","Ticket","Ticket","Ticket","Ticket","Ticket","Ticket","NOK"]
["YES6","Part / tool needs to be cleaned only","Check MN Detection Code","Ticket","NOK","NOK","Ticket","OK","Ticket","Ticket","OK","Ticket","Ticket","Ticket","Ticket","Ticket","NOK"]
["YES7","To be remanufactured as new","Ticket","Ticket","NOK","NOK","Ticket","Ticket","Ticket","Ticket","Ticket","Ticket","Ticket","Ticket","Ticket","OK","NOK"]
[null,"* Additional instructions to check MN detection code"]
[null,"Book material to D011 in case of :"]
[null,"A - DOA"]
[null,"C - DOI"]
[null,"E - DOA (wrong part/packaging)"]
[null,"N - No customer impact DOA"]
[null,"V - Defect during machine install"]
[null,"All other detection codes in combination of PRR status OK or NFF must be booked to good stock  "]

{"sheet":"VR Data Parts","index":20,"n_rows":18,"n_cols":9,"rows_kept":18,"cut":false,"hidden":true,"merged":[[1,2,1,5],[1,7,1,8]]}
[]
[null,"TABLE 2","Result ZQMATR",null,null,null,null,"Table 3"]
[null,"PRR result:","OK","NOK","Ticket","Check MN Detection Code",null,"A","Book to D011"]
[null,"NOK","Ticket","NOK","Ticket","Create TRS Ticket",null,"C","Book to D011"]
[null,"OK","OK","Ticket","Ticket","OK",null,"E","Book to D011"]
[null,"NFF","OK","Ticket","Ticket","OK",null,"N","Book to D011"]
[null,"PRR Not Filled","Ticket","Ticket","Ticket","Create TRS Ticket",null,"V","Book to D011"]
[null,null,null,null,null,null,null,"W","If the VAR flag message is “TOP 40 NFF MH, Move to D011”, the item should be booked to D011. If there is no VAR flag message, the item should be booked to good stock (5500/5510)."]
[null,"ZQ RESULT",null,null,null,null,null,"Other","Book to 5500/5510"]
[null,"ZQ Row",{"$f":"MATCH('VR Matrix Parts'!C4,'VR Source Parts'!A3:A11,0)","v":3}]
[null,"ZQ Column",{"$f":"MATCH('VR Matrix Parts'!C5,'VR Source Parts'!C2:Q2,0)","v":1}]
[null,"ZQRESPONSE",{"$f":"INDEX('VR Source Parts'!C3:Q11, C10, C11)","v":"Check MN Detection Code"},null,null,null,null,"Yes","Book to D011"]
[null,"PRR ZQ RESPONSE",{"$f":"C12","v":"Check MN Detection Code"},null,null,null,null,"No","Book to 5500/5510"]
[]
[]
[null,null,null,null,null,null,null,"OK","Book to 5500/5510"]
[null,null,null,null,null,null,null,"NOK","Book to DMRP"]
[null,null,null,null,null,null,null,"Ticket","Create Ticket"]

{"sheet":"VR Source Tools","index":21,"n_rows":11,"n_cols":17,"rows_kept":11,"cut":false,"hidden":true,"merged":[[0,0,0,15],[11,1,11,2]]}
["ZQSOLUT Solution / Repair action ZQ MN "]
["ZQMATR ","Materials returned to…","NFF1","NFF2","NFF3","NRP1, NRP3, TBSC and SCP","NRP2","UCLE","UAI 1,2,3","UPG1 ","UPG2 ","UPG3","UPG4","UPG5 ","UPG6","UPG7","RAI0"]
["NO","No Materials Returned ","Ticket","Ticket","Ticket","Ticket","Ticket","Ticket","Ticket","Ticket","Ticket","Ticket","Ticket","Ticket","Ticket","Ticket","Ticket"]
["YES","Materials Returned General","Ticket","Ticket","Ticket","Ticket","Ticket","Ticket","Ticket","Ticket","Ticket","Ticket","Ticket","Ticket","Ticket","Ticket","Ticket"]
["YES1","Analyse and repair after valid quote","OK","Ticket","NOK","NOK","Ticket","Ticket","Ticket","Ticket","OK","Ticket","Ticket","Ticket","Ticket","Ticket","NOK"]
["YES2","Upgrade after valid quote","Ticket","Ticket","NOK","NOK","Ticket","Ticket","Ticket","OK","Ticket","OK","Ticket","Ticket","Ticket","Ticket","NOK"]
["YES3","Repair and upgrade after valid qoute","OK","OK","NOK","NOK","Ticket","Ticket","Ticket","Ticket","Ticket","OK","Ticket","Ticket","Ticket","Ticket","NOK"]
["YES4","Mat. ret. to be requalified","OK","Ticket","NOK","NOK","Ticket","Ticket","Ticket","Ticket","OK","Ticket","Ticket","Ticket","Ticket","Ticket","NOK"]
["YES5","Mat. ret. to be analysed only / Do not repair","OK","Ticket","NOK","NOK","Ticket","Ticket","Ticket","Ticket","Ticket","Ticket","Ticket","Ticket","Ticket","Ticket","NOK"]
["YES6","Part / tool needs to be cleaned only","OK","OK","OK","OK","OK","OK","OK","OK","OK","OK","OK","OK","OK","OK","NOK"]
["YES7","To be remanufactured as new","Ticket","Ticket","NOK","NOK","Ticket","Ticket","Ticket","Ticket","Ticket","Ticket","Ticket","Ticket","Ticket","OK","NOK"]

{"sheet":"VR Data Tools","index":22,"n_rows":12,"n_cols":8,"rows_kept":12,"cut":false,"hidden":true,"merged":[]}
[]
[null,"Table 2","OK","NOK","Ticket",null,"OK","Book to 0008"]
[null,"NOK","Ticket","NOK","Ticket",null,"NOK","Book to DMRP"]
[null,"OK","OK","Ticket","Ticket",null,"Ticket","Create ticket"]
[null,"NFF","OK","Ticket","Ticket"]
[null,"PRR Not Filled","Ticket","Ticket","Ticket"]
[]
[null,"ZQ RESULT"]
[null,"ZQ Row",{"$f":"MATCH('VR Matrix Tools'!C4,'VR Source Tools'!A3:A11,0)","v":3}]
[null,"ZQ Column",{"$f":"MATCH('VR Matrix Tools'!C5,'VR Source Tools'!C2:Q2,0)","v":11}]
[null,"ZQRESPONSE",{"$f":"INDEX('VR Source Tools'!C3:Q11,'VR Data Tools'!C9,'VR Data Tools'!C10)","v":"Ticket"}]
[null,"PRR ZQ RESPONSE",{"$f":"C11","v":"Ticket"}]